bitfinex-derivatives/quotes_SOLF0:USTF0_20251229
["timestamp","ask_amount","ask_price","bid_price","bid_amount"]
[1767038170631,113.8776,123.09,123.0,3.54]
[1767038170830,5.93226284,123.08,123.0,3.54]
[1767038171134,3.57701409,123.07,123.0,3.54]
[1767038171333,5.93226284,123.06,123.0,3.54]
[1767038171734,0.0512826,123.04,123.02,0.05537663]
[1767038184039,117.45211409,123.09,123.02,0.05537663]
[1767038184040,7.3207,123.09,123.02,0.05537663]
[1767038184242,5.9433131,123.08,123.02,0.05537663]
[1767038186045,13.2643131,123.08,123.02,0.05537663]
[1767038186343,5.9433131,123.07,123.02,0.05537663]
[1767038188240,5.9433131,123.07,123.03,3.35]
[1767038188442,7.3202,123.1,123.03,3.35]
[1767038188637,5.92577432,123.09,123.05,0.06085143]
[1767038189539,13.24617432,123.09,123.05,0.06085143]
[1767038189740,5.92577432,123.08,123.05,0.06085143]
[1767038190142,7.3204,123.09,123.05,0.06085143]
[1767038192549,9.60594295,123.09,123.05,0.06085143]
[1767038201647,2.28554295,123.1,123.05,0.06085143]
[1767038201846,2.28554295,123.1,123.06,0.05941477]
[1767038203257,9.60534295,123.1,123.06,0.05941477]
[1767038210554,7.3203,123.09,123.06,0.05941477]
[1767038210752,2.28554295,123.08,123.02,3.34]
[1767038210951,2.28554295,123.08,122.99,3.34]
[1767038211153,7.3221,123.07,122.99,3.34]
[1767038211658,0.0525609,123.04,123.02,0.06040297]
[1767038218059,0.0525609,123.04,123.02,0.00040297]
[1767038266486,96.06,123.09,123.02,3.34040297]
[1767038267400,0.05907546,123.07,123.02,3.34040297]
[1767038267595,0.05907546,123.07,123.02,10.66480297]
[1767038274905,0.05907546,123.07,123.03,3.37]
[1767038279399,7.38057546,123.07,123.02,0.00040297]
[1767038281697,7.3222,123.06,123.02,0.00040297]
[1767038289806,5.93763023,123.05,123.02,0.00040297]
[1767038321232,8.22403834,123.05,122.97,99.49]
[1767038321430,2.28640811,123.03,122.97,99.49]
[1767038321724,8.22403834,123.03,122.97,3.41]
[1767038321930,5.93763023,123.02,122.97,3.41]
[1767038322223,2.28640811,123.03,122.97,3.41]
[1767038322430,0.05645769,123.01,122.98,0.05852331]
[1767038322632,0.05645769,123.01,122.98,3.46852331]
[1767038324132,13.26253182,123.04,122.98,3.46852331]
[1767038324325,5.93923182,123.03,122.98,3.46852331]
[1767038324524,2.28640811,123.05,122.98,3.46852331]
[1767038325130,8.22785176,123.05,122.98,3.46852331]
[1767038325330,5.94144365,123.04,122.98,3.46852331]
[1767038325526,2.28640811,123.05,122.98,3.46852331]
[1767038325732,8.22812889,123.05,122.98,3.46852331]
[1767038326035,5.94172078,123.05,122.99,3.37]
[1767038326231,5.94172078,123.05,123.01,3.42789271]
[1767038326429,7.3214,123.08,123.01,3.42789271]
[1767038326628,5.94273315,123.07,123.01,3.42789271]
[1767038326824,15.55074126,123.07,123.01,3.42789271]
[1767038327030,5.94273315,123.06,123.01,3.42789271]
[1767038327225,2.28640811,123.1,123.02,0.0557547]
[1767038327422,5.94215791,123.09,123.01,3.37]
[1767038327925,2.28640811,123.1,123.01,3.37]
[1767038328325,2.28640811,123.1,123.04,0.0519457]
[1767038328531,0.057452,123.07,123.04,0.0519457]
[1767038332546,0.057452,123.07,123.04,0.0019457]
[1767038335242,7.379052,123.07,123.01,3.37]
[1767038336138,7.379052,123.07,123.03,0.05482957]
[1767038339642,9.66546011,123.07,123.03,0.05482957]
[1767038341545,7.379052,123.07,123.03,0.05482957]
[1767038342249,9.60850811,123.06,122.99,3.35]
[1767038343350,0.05681079,123.04,123.01,0.05962243]
[1767038353357,9.60850811,123.06,123.01,3.40962243]
[1767038354563,0.05144548,123.05,123.01,3.40962243]
[1767038355260,7.3215,123.08,123.01,3.40962243]
[1767038355458,7.3215,123.08,123.01,3.35]
[1767038356463,0.05601611,123.06,123.03,0.05198096]
[1767038357061,2.28640811,123.1,123.03,3.49198096]
[1767038357257,2.28640811,123.1,123.03,3.44]
[1767038358158,2.28640811,123.1,123.05,0.05478025]
[1767038361158,2.28640811,123.1,123.05,3.49478025]
[1767038362260,9.60620811,123.1,123.05,3.49478025]
[1767038375368,7.321,123.08,123.02,3.44]
[1767038375682,113.8836,123.08,123.0,3.44]
[1767038375970,7.3203,123.09,123.04,3.44]
[1767038376577,0.05788413,123.08,123.05,0.05883666]
[1767038379985,0.05788413,123.08,123.01,106.8246]
[1767038379986,7.37888413,123.08,123.01,106.8246]
[1767038380187,7.37888413,123.08,123.02,3.44]
[1767038380386,0.05788413,123.08,123.02,3.44]
[1767038380975,0.05788413,123.08,123.04,3.4976207]
[1767038382378,7.3199,123.1,123.04,3.4976207]
[1767038383384,0.058376,123.08,123.04,3.4976207]
[1767038384385,7.3199,123.1,123.04,3.4976207]
[1767038384386,117.40850366,123.13,123.04,3.4976207]
[1767038384582,117.40850366,123.13,123.04,3.44]
[1767038385581,7.3191,123.11,123.07,0.05212209]
[1767038400399,7.3191,123.11,123.04,7.3233]
[1767038401400,0.05803929,123.09,123.04,7.3233]
[1767038401702,0.05803929,123.09,123.03,7.3239]
[1767038401902,0.05803929,123.09,123.03,10.6939]
[1767038402299,7.37833929,123.09,123.03,3.37]
[1767038402498,7.37833929,123.09,123.05,0.05642053]
[1767038402697,7.37833929,123.09,123.03,3.37]
[1767038403703,7.37833929,123.09,123.05,0.06219446]
[1767038404802,7.37833929,123.09,123.05,0.00219446]
[1767038405104,7.321,123.08,123.05,0.00219446]
[1767038407398,10.89160366,123.08,123.0,103.3856]
[1767038407797,10.89160366,123.08,123.0,106.7556]
[1767038408400,0.06234924,123.05,123.03,0.0525738]
[1767038414410,0.06234924,123.05,123.0,3.37]
[1767038415614,7.38504924,123.05,123.01,0.0535487]
[1767038422020,0.06234924,123.05,123.01,0.0535487]
[1767038426423,7.38534924,123.05,123.01,0.0535487]
[1767038427221,7.3235,123.04,123.01,0.0535487]
[1767038427428,213.57070366,123.04,122.96,3.32]
[1767038428421,0.05199105,123.01,122.99,0.06204587]
[1767038429209,0.05199105,123.01,122.94,3.32]
[1767038429415,3.57060366,123.02,122.94,3.32]
[1767038429915,7.3249,123.02,122.94,3.32]
[1767038430119,0.05543898,122.99,122.97,0.05536711]
[1767038435530,3.57060366,123.03,122.97,3.37536711]
[1767038436031,3.57060366,123.03,122.97,0.05536711]
[1767038436638,7.3252,123.01,122.93,4.7346629]
[1767038436826,7.3252,123.01,122.94,3.32]
[1767038437721,0.05288786,122.99,122.96,0.05894934]
[1767038448741,7.37918786,122.99,122.96,0.05894934]
[1767038451044,0.05288786,122.99,122.96,0.05894934]
[1767038452837,7.37918786,122.99,122.94,3.29]
[1767038453642,0.05288786,122.99,122.94,3.29]
[1767038454156,0.05288786,122.99,122.95,0.05663602]
[1767038460755,6.01519608,122.99,122.95,0.05663602]
[1767038469755,0.05288786,122.99,122.95,0.05663602]
[1767038480362,7.37928786,122.99,122.95,0.05663602]
[1767038481968,7.3269,122.98,122.95,0.05663602]
[1767038483272,7.3276,122.97,122.95,0.05663602]
[1767038483476,2.28834057,122.96,122.88,3.44]
[1767038483678,2.28834057,122.94,122.88,3.44]
[1767038484176,7.3299,122.93,122.88,3.44]
[1767038484577,0.05714273,122.92,122.89,0.05539231]
[1767038485868,0.05714273,122.92,122.89,3.49539231]
[1767038486062,113.9676,122.99,122.89,3.49539231]
[1767038486063,7.3277,122.97,122.89,3.49539231]
[1767038486263,7.3277,122.97,122.9,3.44]
[1767038486670,210.1076,122.99,122.91,3.44]
[1767038486671,98.42834057,122.99,122.91,3.44]
[1767038487169,0.0564831,122.96,122.94,0.05865629]
[1767038487772,98.42834057,122.99,122.94,3.49865629]
[1767038488377,98.42834057,122.99,122.94,0.05865629]
[1767038488981,0.05414807,122.98,122.94,0.05865629]
[1767038493385,0.05414807,122.98,122.94,3.49865629]
[1767038495382,0.05414807,122.98,122.95,3.44]
[1767038503489,7.3257,123.0,122.95,3.44]
[1767038504186,7.3257,123.0,122.94,7.38785629]
[1767038504187,7.325,123.02,122.96,3.44]
[1767038504388,117.48166213,123.06,122.96,3.44]
[1767038504595,210.0309,123.07,122.97,3.44]
[1767038504980,3.57596213,123.06,122.97,3.44]
[1767038505595,0.05471038,123.03,123.0,0.06259025]
[1767038507295,0.05471038,123.03,123.0,3.45259025]
[1767038511801,10.89726213,123.08,123.01,3.39]
[1767038512495,7.3217,123.07,123.01,3.39]
[1767038512689,0.06225395,123.05,123.03,0.05481112]
[1767038515199,113.8786,123.09,123.03,0.05481112]
[1767038515200,7.3209,123.09,123.03,3.40481112]
[1767038516297,0.05862235,123.07,123.03,3.40481112]
[1767038517797,7.38022235,123.07,123.03,0.05481112]
[1767038518490,7.3222,123.06,123.03,0.05481112]
[1767038533716,103.48032235,123.07,123.03,0.05481112]
[1767038537212,7.38032235,123.07,123.03,0.05481112]
[1767038540217,0.05862235,123.07,122.99,3.55]
[1767038540518,99.67596213,123.06,122.99,3.55]
[1767038541318,0.05629207,123.04,123.01,0.05374029]
[1767038542321,7.37959207,123.04,123.01,0.00374029]
[1767038542525,0.05629207,123.04,122.97,3.55]
[1767038542817,0.05629207,123.04,122.95,106.9781]
[1767038542818,7.3247,123.02,122.95,106.9781]
[1767038543116,3.57596213,123.02,122.95,3.55]
[1767038543521,0.05442814,123.0,122.97,0.05547221]
[1767038547821,7.38022814,123.0,122.97,0.05547221]
[1767038548129,99.67596213,123.04,122.97,3.60547221]
[1767038549015,96.1,123.04,122.97,3.60547221]
[1767038549220,0.0528387,123.02,122.97,3.60547221]
[1767038554624,0.0028387,123.02,122.97,10.93287221]
[1767038554822,7.3232,123.05,122.97,3.60547221]
[1767038555018,7.3232,123.05,122.97,3.55]
[1767038556021,0.00294929,123.02,123.0,3.60689945]
[1767038558629,0.00294929,123.02,123.0,10.93249945]
[1767038558829,0.00294929,123.02,123.01,3.55]
[1767038559326,0.00294929,123.02,123.01,12.4951]
[1767038560127,0.00294929,123.02,123.01,108.6151]
[1767038567537,2.2864669,123.09,123.04,3.23]
[1767038568736,0.06033529,123.08,123.05,0.0521913]
[1767038571236,0.06033529,123.08,123.05,3.2821913]
[1767038571537,0.00033529,123.08,123.05,3.2821913]
[1767038572134,7.3192,123.11,123.05,3.2821913]
[1767038572335,2.2864669,123.14,123.07,3.23]
[1767038572534,113.7647,123.21,123.09,3.23]
[1767038572727,9.6005669,123.2,123.13,3.23]
[1767038573331,0.05674614,123.18,123.15,0.05657274]
[1767038576343,2.34321304,123.18,123.15,0.05657274]
[1767038577743,0.05674614,123.18,123.15,0.05657274]
[1767038577940,0.05674614,123.18,123.15,3.28657274]
[1767038581148,2.2864669,123.21,123.15,3.28657274]
[1767038581449,9.5989669,123.23,123.15,3.28657274]
[1767038581746,7.3127,123.22,123.15,3.23]
[1767038582242,7.3127,123.22,123.17,0.06007836]
[1767038582243,2.2864669,123.21,123.17,0.06007836]
[1767038582549,9.5999669,123.21,123.17,0.06007836]
[1767038583245,7.3139,123.2,123.17,0.06007836]
[1767038583448,2.2864669,123.19,123.13,3.49]
[1767038584442,0.05848921,123.17,123.15,0.054541]
[1767038588351,0.05848921,123.17,123.11,3.49]
[1767038588555,2.34495611,123.17,123.11,3.49]
[1767038589459,2.34495611,123.17,123.13,0.06028914]
[1767038589663,9.66085611,123.17,123.13,0.06028914]
[1767038591256,7.3163,123.16,123.11,3.49]
[1767038591955,2.2864669,123.15,123.11,3.49]
[1767038592460,0.05819397,123.14,123.12,0.05301062]
[1767038598967,9.6019669,123.18,123.12,3.42301062]
[1767038599168,9.6019669,123.18,123.12,3.37]
[1767038600076,0.05667183,123.16,123.14,0.06072904]
[1767038602380,9.6008669,123.2,123.14,3.43072904]
[1767038602675,2.2864669,123.2,123.15,3.37]
[1767038602971,7.3132,123.21,123.15,3.37]
[1767038603172,0.05733155,123.19,123.17,0.05458757]
[1767038604573,2.2864669,123.22,123.17,0.05458757]
[1767038604774,96.0,123.23,123.17,0.05458757]
[1767038604978,2.2864669,123.22,123.17,0.05458757]
[1767038605772,9.5991669,123.22,123.17,0.05458757]
[1767038608082,7.3127,123.22,123.17,0.05458757]
[1767038608280,7.3127,123.22,123.17,3.42458757]
[1767038610382,7.3127,123.22,123.17,0.05458757]
[1767038611183,2.2864669,123.21,123.17,0.05458757]
[1767038612179,7.3127,123.22,123.17,3.42458757]
[1767038612478,98.2864669,123.23,123.17,3.42458757]
[1767038613579,105.5987669,123.23,123.17,3.42458757]
[1767038614786,7.3127,123.22,123.17,3.42458757]
[1767038617488,96.0,123.23,123.17,3.42458757]
[1767038618579,103.312,123.23,123.17,3.42458757]
[1767038618784,96.0,123.23,123.18,3.37]
[1767038619084,96.0,123.23,123.17,7.36998757]
[1767038619288,98.2864669,123.23,123.17,3.42458757]
[1767038620581,103.312,123.23,123.17,3.42458757]
[1767038621884,7.312,123.23,123.17,3.42458757]
[1767038622487,7.3126,123.22,123.17,0.05458757]
[1767038622690,3.56279826,123.23,123.15,3.37]
[1767038623092,7.3139,123.2,123.13,10.6874]
[1767038623693,0.05654714,123.18,123.15,0.05415541]
[1767038624295,0.05654714,123.18,123.15,0.00415541]
[1767038625596,7.37174714,123.18,123.15,0.00415541]
[1767038629501,0.05654714,123.18,123.15,0.00415541]
[1767038635505,95.98,123.22,123.15,3.34415541]
[1767038636599,0.05196979,123.2,123.15,3.34415541]
[1767038640899,0.05196979,123.2,123.15,0.00415541]
[1767038640900,7.36586979,123.2,123.15,0.00415541]
[1767038641201,7.36586979,123.2,123.15,3.34415541]
[1767038655009,0.05196979,123.2,123.15,10.66085541]
[1767038658212,0.05196979,123.2,123.16,3.27]
[1767038662717,213.26109826,123.26,123.17,3.27]
[1767038663712,213.26109826,123.26,123.13,113.8302]
[1767038663713,3.56279826,123.22,123.13,3.27]
[1767038663908,99.54279826,123.22,123.13,3.27]
[1767038664819,0.05142056,123.19,123.16,0.05422946]
[1767038673722,0.00142056,123.19,123.16,3.32422946]
[1767038673918,99.54279826,123.25,123.16,3.32422946]
[1767038674125,99.54279826,123.25,123.16,3.27]
[1767038674324,99.54279826,123.25,123.13,113.8296]
[1767038674325,95.98,123.25,123.18,3.27]
[1767038674921,95.98,123.25,123.2,0.0548963]
[1767038675719,103.2909,123.25,123.2,0.0548963]
[1767038675920,95.98,123.25,123.2,0.0548963]
[1767038676126,7.3114,123.24,123.2,0.0048963]
[1767038677222,0.05869625,123.23,123.2,0.0048963]
[1767038678226,0.05869625,123.23,123.2,3.2748963]
[1767038682928,0.05869625,123.23,123.2,0.0048963]
[1767038686536,2.27933072,123.22,123.17,3.26]
[1767038686926,9.59203072,123.22,123.17,3.26]
[1767038687525,0.05636765,123.21,123.18,0.05452023]
[1767038691432,0.05636765,123.21,123.18,3.31452023]
[1767038691836,2.27933072,123.23,123.18,3.31452023]
[1767038692034,9.59003072,123.26,123.2,3.26]
[1767038693939,0.05513586,123.24,123.2,3.26]
[1767038694841,0.05513586,123.24,123.21,0.0619704]
[1767038697249,2.33446658,123.24,123.21,0.0619704]
[1767038698137,2.33446658,123.24,123.19,7.3144]
[1767038699144,2.33446658,123.24,123.2,0.06250625]
[1767038700544,2.27933072,123.22,123.17,3.35]
[1767038701435,0.05669594,123.21,123.18,0.05262916]
[1767038707652,2.27933072,123.2,123.15,3.35]
[1767038707850,2.27933072,123.18,123.11,3.35]
[1767038708343,113.7752,123.2,123.11,3.35]
[1767038708344,2.27933072,123.16,123.11,3.35]
[1767038708745,0.05469705,123.15,123.12,0.06104118]
[1767038710862,2.27933072,123.14,123.09,3.35]
[1767038711955,2.27933072,123.14,123.1,0.05227572]
[1767038712155,2.33402777,123.15,123.1,3.40227572]
[1767038713560,0.05469705,123.15,123.1,3.40227572]
[1767038730582,0.05469705,123.15,123.1,10.72187572]
[1767038730785,0.00469705,123.15,123.1,3.40227572]
[1767038730983,0.00469705,123.15,123.1,99.40227572]
[1767038731175,0.00469705,123.15,123.11,3.43]
[1767038732485,0.00469705,123.15,123.12,3.43]
[1767038733084,0.00469705,123.15,123.12,10.7485]
[1767038733389,0.00469705,123.15,123.13,3.43]
[1767038733578,0.00469705,123.15,123.13,3.48160863]
[1767038738693,2.27933072,123.22,123.14,3.43]
[1767038738886,98.27933072,123.24,123.17,3.43]
[1767038739693,98.27933072,123.24,123.16,7.3158]
[1767038739694,0.06011329,123.22,123.19,0.05644312]
[1767038740292,2.33944401,123.22,123.19,0.05644312]
[1767038740687,9.65214401,123.22,123.19,0.05644312]
[1767038742492,7.37281329,123.22,123.19,0.05644312]
[1767038744398,0.06011329,123.22,123.19,0.05644312]
[1767038757604,0.06011329,123.22,123.19,3.49644312]
[1767038761315,0.06011329,123.22,123.19,10.81074312]
[1767038763516,0.06011329,123.22,123.2,3.44]
[1767038766619,0.06011329,123.22,123.2,10.7537]
[1767038766819,0.06011329,123.22,123.21,3.44]
[1767038769929,0.06011329,123.22,123.21,10.7532]
[1767038774125,0.06011329,123.22,123.21,106.7132]
[1767038774627,95.96,123.31,123.24,3.44]
[1767038774923,3.56335672,123.32,123.24,3.44]
[1767038775231,3.56335672,123.32,123.26,3.44]
[1767038775726,3.56335672,123.32,123.28,0.0596886]
[1767038775727,0.05887269,123.3,123.28,0.0596886]
[1767038776124,0.05887269,123.3,123.26,3.44]
[1767038777223,0.05887269,123.3,123.27,0.06226603]
[1767038778129,0.05887269,123.3,123.27,3.27226603]
[1767038778921,0.05887269,123.3,123.27,0.06226603]
[1767038787036,0.05887269,123.3,123.27,3.27226603]
[1767038787536,0.05887269,123.3,123.27,0.06226603]
[1767038789639,7.36677269,123.3,123.27,0.06226603]
[1767038791937,7.3085,123.29,123.23,3.21]
[1767038792132,3.56335672,123.28,123.21,3.21]
[1767038793133,0.06196957,123.26,123.23,0.05486562]
[1767038793728,0.06196957,123.26,123.21,3.21]
[1767038794339,7.311,123.25,123.21,3.21]
[1767038794541,7.311,123.25,123.19,3.21]
[1767038794742,0.05394884,123.23,123.21,0.05598662]
[1767038796931,3.44,123.29,123.21,7.36888662]
[1767038797138,3.44,123.29,123.22,3.21]
[1767038798037,0.05379597,123.27,123.24,0.05186146]
[1767038798238,0.05379597,123.27,123.24,3.26186146]
[1767038803335,3.49379597,123.27,123.2,3.21]
[1767038804544,9.5904253,123.25,123.22,0.056648]
[1767038804743,13.0304253,123.25,123.22,0.056648]
[1767038809046,10.73389597,123.27,123.22,0.056648]
[1767038809240,3.42379597,123.27,123.22,3.376648]
[1767038812449,10.73349597,123.27,123.22,3.376648]
[1767038812654,10.73349597,123.27,123.22,0.056648]
[1767038815749,5.6495253,123.26,123.22,0.056648]
[1767038815950,12.9598253,123.26,123.22,0.056648]
[1767038816851,10.6809,123.25,123.22,0.056648]
[1767038822851,12.86342127,123.27,123.22,0.056648]
[1767038823056,0.05379597,123.27,123.22,3.486648]
[1767038823350,3.22,123.25,123.22,0.056648]
[1767038824057,10.5308,123.25,123.22,0.056648]
[1767038824554,2.2795253,123.24,123.18,3.43]
[1767038824754,2.2795253,123.24,123.19,3.43]
[1767038825555,0.05964935,123.23,123.2,0.06180132]
[1767038831159,0.05964935,123.23,123.2,3.49180132]
[1767038831362,0.00300135,123.23,123.2,10.80540132]
[1767038832959,0.00300135,123.23,123.21,10.7431]
[1767038833160,0.00300135,123.23,123.21,3.43]
[1767038835869,0.00300135,123.23,123.2,0.06180132]
[1767038836468,0.00300135,123.23,123.2,3.26180132]
[1767038843878,0.00300135,123.23,123.2,10.57550132]
[1767038844071,0.00300135,123.23,123.2,3.26180132]
[1767038845676,0.00300135,123.23,123.21,10.5131]
[1767038845874,0.00300135,123.23,123.2,0.06180132]
[1767038846071,0.00300135,123.23,123.2,3.26180132]
[1767038847074,3.29300135,123.23,123.2,0.06180132]
[1767038857091,3.29300135,123.23,123.2,0.00180132]
[1767038863694,5.57252665,123.23,123.2,0.00180132]
[1767038863995,5.57252665,123.23,123.18,3.35]
[1767038865089,5.57252665,123.23,123.19,0.06213835]
[1767038866498,3.29300135,123.23,123.19,0.06213835]
[1767038868494,3.29300135,123.23,123.19,7.37643835]
[1767038868896,1.35e-06,123.23,123.19,0.06213835]
[1767038870098,0.0563654,123.22,123.19,0.06213835]
[1767038870289,0.0563654,123.22,123.2,7.3132]
[1767038872899,0.0563654,123.22,123.21,7.3132]
[1767038873194,7.309,123.29,123.2,209.7279]
[1767038873399,7.309,123.29,123.21,95.96]
[1767038874095,0.05346678,123.26,123.24,0.06036537]
[1767038878999,0.05346678,123.26,123.24,7.37166537]
[1767038879200,0.05346678,123.26,123.24,0.06036537]
[1767038885408,0.05346678,123.26,123.25,7.3108]
[1767038885708,113.6381,123.35,123.25,7.3108]
[1767038885908,7.306,123.34,123.26,95.92]
[1767038886514,7.3048,123.36,123.26,213.19574766]
[1767038886704,0.06063757,123.32,123.3,0.06028902]
[1767038895733,7.3034,123.38,123.3,7.36788902]
[1767038896026,7.3034,123.38,123.31,95.9]
[1767038896825,0.05341598,123.36,123.33,0.06009473]
[1767038899929,0.05341598,123.36,123.33,7.36579473]
[1767038900138,0.05341598,123.36,123.33,0.06009473]
[1767038900437,0.05341598,123.36,123.33,95.94009473]
[1767038900643,0.05341598,123.36,123.34,7.3054]
[1767038901230,7.3,123.44,123.35,7.3046]
[1767038901434,7.3,123.44,123.36,95.88]
[1767038901730,113.549,123.45,123.36,95.88]
[1767038901935,3.56284766,123.44,123.36,95.88]
[1767038902428,0.05300401,123.41,123.39,0.05516288]
[1767038905834,0.05300401,123.41,123.35,7.3044]
[1767038905835,0.05300401,123.41,123.35,103.1644]
[1767038906840,0.05300401,123.41,123.37,0.052397]
[1767038907536,0.05300401,123.41,123.37,95.912397]
[1767038908236,0.05300401,123.41,123.37,0.052397]
[1767038911345,0.05300401,123.41,123.33,95.84]
[1767038911549,3.56284766,123.42,123.33,95.84]
[1767038912354,0.0563542,123.39,123.36,0.05644295]
[1767038915744,0.0563542,123.39,123.27,117.26054766]
[1767038915951,117.15244766,123.4,123.29,95.84]
[1767038916251,117.15244766,123.4,123.31,7.3072]
[1767038916739,0.05428803,123.37,123.34,0.05962144]
[1767038921449,7.35798803,123.37,123.29,95.84]
[1767038921650,7.3037,123.37,123.29,95.84]
[1767038922465,0.0568046,123.34,123.32,0.0538896]
[1767038924960,7.3037,123.37,123.32,0.0538896]
[1767038925162,3.56284766,123.38,123.32,7.3604896]
[1767038925459,7.3029,123.39,123.32,7.3604896]
[1767038926155,0.05306994,123.37,123.32,7.3604896]
[1767038928450,0.05306994,123.37,123.33,7.306]
[1767038929561,0.05306994,123.37,123.34,7.3054]
[1767038931459,2.2746611,123.4,123.32,0.0538896]
[1767038931460,105.4153611,123.42,123.36,7.3043]
[1767038932450,0.06104199,123.4,123.38,0.05725417]
[1767038934567,0.06104199,123.4,123.34,7.305]
[1767038934765,2.2746611,123.37,123.26,113.7072]
[1767038935059,2.2746611,123.35,123.27,113.7038]
[1767038935766,0.05276926,123.32,123.3,0.05178278]
[1767038936965,98.1146611,123.37,123.3,0.05178278]
[1767038937965,0.05554983,123.35,123.3,0.05178278]
[1767038946070,0.00030964,123.35,123.32,113.6588]
[1767038946281,2.2746611,123.43,123.32,113.6588]
[1767038946467,2.2746611,123.43,123.33,95.86]
[1767038947170,0.05767085,123.39,123.37,0.06020127]
[1767038948772,0.05767085,123.39,123.31,7.3069]
[1767038948978,2.2746611,123.39,123.32,95.86]
[1767038949669,9.5773611,123.39,123.29,9.5826611]
[1767038949869,0.05528126,123.35,123.33,0.05248423]
[1767038950988,9.5772611,123.39,123.33,0.05248423]
[1767038952180,0.05692229,123.37,123.33,0.05248423]
[1767038953884,0.05692229,123.37,123.33,95.89248423]
[1767038954585,0.05692229,123.37,123.33,103.19838423]
[1767038954979,0.05692229,123.37,123.33,95.89248423]
[1767038955284,0.05692229,123.37,123.35,7.3048]
[1767038956272,0.05692229,123.37,123.35,103.1448]
[1767038956479,2.2746611,123.46,123.35,211.0855]
[1767038956688,2.2746611,123.46,123.35,209.4655]
[1767038956887,113.522,123.47,123.38,113.6039]
[1767038956888,2.2746611,123.47,123.38,113.6039]
[1767038957092,9.5719611,123.48,123.4,7.3018]
[1767038957388,2.2746611,123.48,123.4,103.1418]
[1767038957586,0.05340272,123.45,123.4,95.84]
[1767038958084,0.05340272,123.45,123.38,95.84]
[1767038958386,2.2746611,123.46,123.38,95.84]
[1767038958584,0.05371811,123.43,123.4,0.05172654]
[1767038963883,0.05371811,123.43,123.35,7.3045]
[1767038964189,2.2746611,123.43,123.35,103.1245]
[1767038965186,0.05990873,123.4,123.38,0.06089732]
[1767038977394,0.05990873,123.4,123.39,7.3025]
[1767038980091,0.05990873,123.4,123.38,7.36399732]
[1767038981099,0.05990873,123.4,123.38,0.06089732]
[1767038981700,0.05990873,123.4,123.38,7.36389732]
[1767038986996,0.05990873,123.4,123.39,103.1025]
[1767038987194,7.2983,123.47,123.39,95.8]
[1767038987399,7.2983,123.47,123.41,7.3012]
[1767038988303,0.05709958,123.45,123.41,7.3012]
[1767038991500,0.05709958,123.45,123.41,103.1012]
[1767038993311,0.05709958,123.45,123.41,95.8]
[1767038994905,0.05709958,123.45,123.41,103.1012]
[1767038995216,0.05709958,123.45,123.41,95.8]
[1767038996411,0.05709958,123.45,123.41,95.8]
[1767038997110,0.05709958,123.45,123.37,113.6102]
[1767038997111,0.05709958,123.45,123.39,95.8]
[1767038997309,7.2986,123.46,123.39,95.8]
[1767038997510,0.0536265,123.44,123.39,95.8]
[1767039000214,0.0536265,123.44,123.39,103.1025]
[1767039001813,0.0536265,123.44,123.39,209.3907]
[1767039002022,0.0536265,123.44,123.4,95.8]
[1767039002514,0.0536265,123.44,123.39,7.3022]
[1767039002727,0.0536265,123.44,123.39,95.8]
[1767039003219,0.0536265,123.44,123.39,103.1021]
[1767039003514,0.0536265,123.44,123.38,113.6007]
[1767039003718,0.0536265,123.44,123.39,95.8]
[1767039004621,0.0536265,123.44,123.4,7.3016]
[1767039004823,0.0536265,123.44,123.39,95.8]
[1767039006421,0.0536265,123.44,123.39,103.1023]
[1767039006923,0.0536265,123.44,123.39,103.0823]
[1767039009328,0.0536265,123.44,123.39,95.78]
[1767039009531,0.0536265,123.44,123.38,113.6011]
[1767039009826,0.0536265,123.44,123.4,95.78]
[1767039010620,0.0536265,123.44,123.41,95.78]
[1767039015624,0.0536265,123.44,123.36,113.6205]
[1767039015823,0.05943395,123.41,123.37,95.78]
[1767039016626,0.05943395,123.41,123.4,7.3019]
[1767039016826,99.36884694,123.51,123.4,95.78]
[1767039017027,99.36884694,123.51,123.41,95.78]
[1767039017826,0.05635326,123.47,123.41,95.78]
[1767039018331,0.05635326,123.47,123.43,5.20743053]
[1767039019032,0.05635326,123.47,123.41,103.0808]
[1767039019536,0.05635326,123.47,123.42,7.3007]
[1767039020816,0.05635326,123.47,123.43,7.3]
[1767039022719,0.05635326,123.47,123.42,95.78]